fUSD/lending_fUSD_20250209
["ID","MTS","AMOUNT","RATE_DAILY","PERIOD"]
[352380124,1739068272559,-500.0,0.00010948,2]
[352380125,1739068272568,-500.0,0.00010948,2]
[352380126,1739068272578,-500.0,0.00010948,2]
[352380127,1739068272587,-500.0,0.00010948,2]
[352380128,1739068272597,-500.0,0.00010948,2]
[352380129,1739068272606,-500.0,0.00010948,2]
[352380130,1739068272616,-500.0,0.00010948,2]
[352380131,1739068272625,-500.0,0.00010948,2]
[352380132,1739068272635,-268.55397976,0.00010948,2]
[352380133,1739068272645,-500.0,0.00010948,2]
[352380134,1739068272654,-500.0,0.00010948,2]
[352380135,1739068272664,-180.23,0.00010948,2]
[352380136,1739068272673,-500.0,0.00010949,2]
[352380137,1739068272683,-500.0,0.00010949,2]
[352380138,1739068272692,-500.0,0.00010949,2]
[352380139,1739068272702,-307.9508222,0.00010949,2]
[352380140,1739068272711,-500.0,0.00010949,2]
[352380141,1739068272720,-500.0,0.00010949,2]
[352380142,1739068272730,-500.0,0.00010949,2]
[352380143,1739068272740,-500.0,0.00010949,2]
[352380144,1739068272749,-687.79,0.00010949,2]
[352380145,1739068272759,-421.56616299,0.00010949,2]
[352380146,1739068272768,-500.0,0.00010949,2]
[352380147,1739068272778,-500.0,0.00010949,2]
[352380148,1739068272787,-500.0,0.00010949,2]
[352380149,1739068272798,-500.0,0.00010949,2]
[352380150,1739068272808,-500.0,0.00010949,2]
[352380151,1739068272818,-500.0,0.00010949,2]
[352380152,1739068272829,-940.52,0.00010949,2]
[352380153,1739068272840,-500.0,0.00010949,2]
[352380154,1739068272851,-500.0,0.00010949,2]
[352380155,1739068272863,-500.0,0.00010949,2]
[352380156,1739068272874,-572.54,0.00010949,2]
[352380157,1739068272884,-335.39136415,0.00010949,2]
[352380158,1739068272895,-500.0,0.00010949,2]
[352380159,1739068272905,-524.86273463,0.00010949,2]
[352380160,1739068272916,-713.14,0.00010949,2]
[352380161,1739068272926,-501.10979549,0.00010949,2]
[352380162,1739068272937,-789.17,0.00010949,2]
[352380163,1739068272947,-394.56403103,0.00010949,2]
[352380164,1739068272956,-500.0,0.00010949,2]
[352380165,1739068272965,-500.0,0.00010949,2]
[352380166,1739068272974,-180.32033062,0.00010949,2]
[352380167,1739068272984,-500.0,0.00010949,2]
[352380168,1739068272993,-500.0,0.00010949,2]
[352380169,1739068273002,-500.0,0.00010949,2]
[352380170,1739068273011,-500.0,0.00010949,2]
[352380171,1739068273021,-523.94189955,0.00010949,2]
[352380172,1739068273030,-604.29,0.00010949,2]
[352380173,1739068273040,-500.0,0.00010949,2]
[352380174,1739068273050,-500.0,0.00010949,2]
[352380175,1739068273059,-500.0,0.00010949,2]
[352380176,1739068273068,-796.85,0.00010949,2]
[352380177,1739068273078,-500.0,0.00010949,2]
[352380178,1739068273087,-704.0,0.00010949,2]
[352380179,1739068273097,-500.0,0.00010949,2]
[352380180,1739068273106,-500.0,0.00010949,2]
[352380181,1739068273116,-500.0,0.00010949,2]
[352380182,1739068273125,-855.137713,0.00010949,2]
[352380183,1739068273135,-878.2,0.00010949,2]
[352380184,1739068273145,-965.48681,0.00010949,2]
[352380185,1739068273154,-500.0,0.00010949,2]
[352380186,1739068273163,-162.02211448,0.00010949,2]
[352380187,1739068273177,-500.0,0.00010949,2]
[352380188,1739068273186,-500.0,0.00010949,2]
[352380189,1739068273195,-500.0,0.00010949,2]
[352380190,1739068273206,-500.0,0.00010949,2]
[352380191,1739068273215,-500.0,0.00010949,2]
[352380192,1739068273225,-500.0,0.00010949,2]
[352380193,1739068273234,-500.0,0.00010949,2]
[352380194,1739068273243,-500.0,0.00010949,2]
[352380195,1739068273252,-500.0,0.00010949,2]
[352380196,1739068273263,-502.45,0.00010949,2]
[352380197,1739068273272,-500.0,0.00010949,2]
[352380198,1739068273282,-906.91,0.00010949,2]
[352380199,1739068273291,-500.0,0.00010949,2]
[352380200,1739068273300,-520.73,0.00010949,2]
[352380201,1739068273309,-500.0,0.00010949,2]
[352380202,1739068273318,-862.92,0.00010949,2]
[352380203,1739068273328,-850.75,0.00010949,2]
[352380204,1739068273339,-500.0,0.00010949,2]
[352380205,1739068273350,-500.0,0.00010949,2]
[352380206,1739068273360,-632.29,0.00010949,2]
[352380207,1739068273370,-867.75,0.00010949,2]
[352380208,1739068273379,-500.0,0.00010949,2]
[352380209,1739068273388,-500.0,0.00010949,2]
[352380210,1739068273398,-500.0,0.00010949,2]
[352380211,1739068273407,-500.0,0.00010949,2]
[352380212,1739068273418,-500.0,0.00010949,2]
[352380213,1739068273428,-657.74,0.00010949,2]
[352380214,1739068273438,-950.5,0.00010949,2]
[352380215,1739068273447,-500.0,0.00010949,2]
[352380216,1739068273456,-796.41,0.00010949,2]
[352380217,1739068273466,-500.0,0.00010949,2]
[352380218,1739068273475,-500.0,0.00010949,2]
[352380219,1739068273486,-500.0,0.00010949,2]
[352380220,1739068273495,-500.0,0.00010949,2]
[352380221,1739068273505,-500.0,0.00010949,2]
[352380222,1739068273516,-789.95,0.00010949,2]
[352380223,1739068273526,-500.0,0.00010949,2]
[352380224,1739068273536,-500.0,0.00010949,2]
[352380225,1739068273545,-500.0,0.00010949,2]
[352380226,1739068273555,-500.0,0.00010949,2]
[352380227,1739068273564,-770.81,0.00010949,2]
[352380228,1739068273574,-1974.36,0.00010949,2]
[352380229,1739068273583,-796.4,0.00010949,2]
[352380230,1739068273594,-594.33,0.00010949,2]
[352380231,1739068273604,-713.04,0.00010949,2]
[352380232,1739068273613,-500.0,0.00010949,2]
[352380233,1739068273623,-1895.12,0.00010949,2]
[352380234,1739068273633,-525.89,0.00010949,2]
[352380235,1739068273643,-500.0,0.00010949,2]
[352380236,1739068273652,-2888.1,0.00010949,2]
[352380237,1739068273662,-510.49645774,0.00010949,2]
[352380238,1739068273672,-1057.6,0.00010949,2]
[352380239,1739068273682,-1387.64,0.00010949,2]
[352380240,1739068273691,-500.0,0.00010949,2]
[352380241,1739068273701,-514.0,0.00010949,2]
[352380242,1739068273710,-1501.18,0.00010949,2]
[352380243,1739068273720,-1053.58,0.00010949,2]
[352380244,1739068273729,-514.54,0.00010949,2]
[352380245,1739068273738,-768.56,0.00010949,2]
[352380246,1739068273748,-535.07,0.00010949,2]
[352380247,1739068273757,-680.69,0.00010949,2]
[352380248,1739068273766,-208.9223818,0.00010949,2]
[352380249,1739068273777,-1231.64,0.00010949,2]
[352380250,1739068273786,-2192.35,0.00010949,2]
[352380251,1739068273797,-586.73,0.00010949,2]
[352380252,1739068273807,-500.0,0.00010949,2]
[352380253,1739068273816,-1046.17,0.00010949,2]
[352380254,1739068273826,-1813.69,0.00010949,2]
[352380255,1739068273835,-500.0,0.00010949,2]
[352380256,1739068273845,-1640.37,0.00010949,2]
[352380257,1739068273861,-669.76,0.00010949,2]
[352380258,1739068273871,-500.0,0.00010949,2]
[352380259,1739068273880,-912.52,0.00010949,2]
[352380260,1739068273891,-1735.55,0.00010949,2]
[352380261,1739068273900,-500.0,0.00010949,2]
[352380262,1739068273910,-500.0,0.00010949,2]
[352380263,1739068273920,-500.0,0.00010949,2]
[352380264,1739068273932,-1516.41,0.00010949,2]
[352380265,1739068273942,-1011.36,0.00010949,2]
[352380266,1739068273952,-500.0,0.00010949,2]
[352380267,1739068274122,-1292.34,0.00010949,2]
[352380268,1739068274132,-500.0,0.00010949,2]
[352380269,1739068274142,-1086.04,0.00010949,2]
[352380270,1739068274151,-500.0,0.00010949,2]
[352380271,1739068274161,-788.32,0.00010949,2]
[352380272,1739068274170,-511.65461179,0.00010949,2]
[352380273,1739068274179,-1813.88,0.00010949,2]
[352380274,1739068274189,-2183.54,0.00010949,2]
[352380275,1739068274198,-500.0,0.00010949,2]
[352380276,1739068274208,-798.61,0.00010949,2]
[352380277,1739068274217,-1408.01,0.00010949,2]
[352380278,1739068274226,-678.49,0.00010949,2]
[352380279,1739068274236,-1409.7,0.00010949,2]
[352380280,1739068274246,-967.29,0.00010949,2]
[352380281,1739068274256,-500.0,0.00010949,2]
[352380282,1739068274266,-645.64,0.00010949,2]
[352380283,1739068274276,-695.06,0.00010949,2]
[352380284,1739068274286,-951.2,0.00010949,2]
[352380285,1739068274296,-1002.71,0.00010949,2]
[352380286,1739068274305,-519.83999697,0.00010949,2]
[352380287,1739068274314,-1894.78,0.00010949,2]
[352380288,1739068274323,-2146.73,0.00010949,2]
[352380289,1739068274333,-1508.57,0.00010949,2]
[352380290,1739068274343,-3646.49,0.00010949,2]
[352380291,1739068274352,-735.05,0.00010949,2]
[352380292,1739068274361,-2412.9,0.00010949,2]
[352380293,1739068274370,-500.0,0.00010949,2]
[352380294,1739068274379,-749.05,0.00010949,2]
[352380295,1739068274389,-1730.37,0.00010949,2]
[352380296,1739068274398,-984.54,0.00010949,2]
[352380297,1739068274408,-500.0,0.00010949,2]
[352380298,1739068274418,-2918.7,0.00010949,2]
[352380299,1739068274427,-500.0,0.00010949,2]
[352380300,1739068274437,-988.0,0.00010949,2]
[352380301,1739068274447,-967.87,0.00010949,2]
[352380302,1739068274457,-500.0,0.00010949,2]
[352380303,1739068274466,-500.0,0.00010949,2]
[352380304,1739068274476,-581.21413732,0.00010949,2]
[352380305,1739068274485,-500.0,0.00010949,2]
[352380306,1739068274495,-509.19,0.00010949,2]
[352380307,1739068274505,-500.0,0.00010949,2]
[352380308,1739068274514,-638.52,0.00010949,2]
[352380309,1739068274524,-1138.87,0.00010949,2]
[352380310,1739068274534,-570.46,0.00010949,2]
[352380311,1739068274544,-1633.4,0.00010949,2]
[352380312,1739068274553,-803.83,0.00010949,2]
[352380313,1739068274563,-500.0,0.00010949,2]
[352380314,1739068274573,-500.0,0.00010949,2]
[352380315,1739068274584,-500.0,0.00010949,2]
[352380316,1739068274595,-500.0,0.00010949,2]
[352380317,1739068274605,-1288.74,0.00010949,2]
[352380318,1739068274614,-1711.72,0.00010949,2]
[352380319,1739068274624,-1257.42,0.00010949,2]
[352380320,1739068274635,-1369.94,0.00010949,2]
[352380321,1739068274646,-633.01,0.00010949,2]
[352380322,1739068274655,-1214.08,0.00010949,2]
[352380323,1739068274665,-630.24,0.00010949,2]
[352380324,1739068274675,-548.7,0.00010949,2]
[352380325,1739068274685,-1405.68,0.00010949,2]
[352380326,1739068274694,-500.0,0.00010949,2]
[352380327,1739068274704,-1452.51,0.00010949,2]
[352380328,1739068274714,-1705.78,0.00010949,2]
[352380329,1739068274723,-500.0,0.00010949,2]
[352380330,1739068274732,-621.33,0.00010949,2]
[352380331,1739068274742,-1951.52,0.00010949,2]
[352380332,1739068274751,-603.4,0.00010949,2]
[352380333,1739068274761,-500.0,0.00010949,2]
[352380334,1739068274770,-2275.81,0.00010949,2]
[352380335,1739068274780,-1151.28,0.00010949,2]
[352380336,1739068274789,-500.0,0.00010949,2]
[352380337,1739068274799,-5115.12,0.00010949,2]
[352380338,1739068274809,-500.0,0.00010949,2]
[352380339,1739068274818,-500.0,0.0001095,2]
[352380340,1739068274827,-500.0,0.0001095,2]
[352380341,1739068274837,-500.0,0.0001095,2]
[352380342,1739068274847,-500.0,0.0001095,2]
[352380343,1739068274860,-500.0,0.0001095,2]
[352380344,1739068274870,-500.0,0.0001095,2]
[352380345,1739068274879,-486.32055024,0.0001095,2]
[352380346,1739068274889,-500.0,0.0001095,2]
[352380347,1739068274899,-500.0,0.0001095,2]
[352380348,1739068274908,-186.62087978,0.0001095,2]
[352380349,1739068274918,-500.0,0.0001095,2]
[352380350,1739068274928,-500.0,0.0001095,2]
[352380351,1739068274939,-500.0,0.0001095,2]
[352380352,1739068274948,-165.29465585,0.0001095,2]
[352380353,1739068274957,-500.0,0.0001095,2]
[352380354,1739068274967,-500.0,0.0001095,2]
[352380355,1739068274976,-500.0,0.0001095,2]
[352380356,1739068274986,-785.18,0.00010958,2]
[352380357,1739068274996,-644.68,0.00010958,2]
[352380358,1739068275006,-646.35,0.00010958,2]
[352380359,1739068275016,-500.0,0.00010958,2]
[352380360,1739068275026,-1506.13,0.00010958,2]
[352380361,1739068275035,-1265.04,0.00010958,2]
[352380362,1739068275045,-1598.62,0.00010958,2]
[352380363,1739068275055,-1741.99,0.00010958,2]
[352380364,1739068275065,-220.87,0.00010958,2]
[352380365,1739068275074,-500.0,0.00010958,2]
[352380366,1739068275083,-1264.68,0.00010958,2]
[352380367,1739068275092,-1332.83,0.00010958,2]
[352380368,1739068275102,-1408.8,0.00010958,2]
[352380369,1739068275112,-2329.97,0.00010958,2]
[352380370,1739068275121,-1536.78,0.00010958,2]
[352380371,1739068275131,-704.79,0.00010958,2]
[352380372,1739068275141,-2199.8,0.00010958,2]
[352380373,1739068275151,-846.8,0.00010958,2]
[352380374,1739068275160,-500.0,0.00010958,2]
[352380375,1739068275170,-500.0,0.00010958,2]
[352380376,1739068275179,-540.53,0.00010958,2]
[352380377,1739068275189,-500.0,0.00010958,2]
[352380378,1739068275198,-726.76,0.00010958,2]
[352380379,1739068275207,-1126.43,0.00010958,2]
[352380380,1739068275217,-500.0,0.00010958,2]
[352380381,1739068275226,-500.0,0.00010958,2]
[352380382,1739068275236,-500.0,0.00010958,2]
[352380383,1739068275246,-150.0,0.00010959,2]
[352380384,1739068275255,-3191.868,0.00010959,2]
[352380385,1739068275265,-184.99,0.00010959,2]
[352380386,1739068275274,-150.0,0.00010982,2]
[352380387,1739068275283,-500.97435603,0.0001099,2]
[352380388,1739068275292,-799.77696101,0.00010998,2]
[352380389,1739068275302,-250.17820711,0.00010998,2]
[352380390,1739068275311,-248.54458418,0.00010998,2]
[352380391,1739068275320,-500.0,0.00010998,2]
[352380392,1739068275330,-150.0,0.00010998,2]
[352380393,1739068275340,-1678.0,0.00010998,2]
[352380394,1739068275349,-500.0,0.00010999,2]
[352380395,1739068275360,-300.0,0.00010999,2]
[352380396,1739068275370,-22686.0,0.00011,2]
[352380397,1739068275379,-152.144829,0.00011,2]
[352380398,1739068275388,-28901.12801474,0.00011,2]
[352380399,1739068275397,-277834.41031169,0.00011,2]
[352380400,1739068275406,-99798.6528354,0.00011,2]
[352380401,1739068275418,-381.85,0.00011,2]
[352380402,1739068275428,-381.85,0.00011,2]
[352380403,1739068275438,-381.85,0.00011,2]
[352380404,1739068275448,-381.85,0.00011,2]
[352380405,1739068275457,-381.85,0.00011,2]
[352380406,1739068275467,-381.85,0.00011,2]
[352380407,1739068275476,-381.85,0.00011,2]
[352380408,1739068275485,-381.85,0.00011,2]
[352380409,1739068275496,-381.85,0.00011,2]
[352380410,1739068275507,-381.85,0.00011,2]
[352380411,1739068275518,-381.85,0.00011,2]
[352380412,1739068275528,-381.85,0.00011,2]
[352380413,1739068275539,-381.85,0.00011,2]
[352380414,1739068275551,-381.85,0.00011,2]
[352380415,1739068275561,-381.85,0.00011,2]
[352380416,1739068275571,-381.85,0.00011,2]
[352380417,1739068275579,-381.85,0.00011,2]
[352380418,1739068275588,-381.85,0.00011,2]
[352380419,1739068275598,-381.85,0.00011,2]
[352380420,1739068275608,-381.85,0.00011,2]
[352380421,1739068275617,-381.85,0.00011,2]
[352380422,1739068275627,-381.85,0.00011,2]
[352380423,1739068275636,-381.85,0.00011,2]
[352380424,1739068275645,-381.85,0.00011,2]
[352380425,1739068275654,-381.85,0.00011,2]
[352380426,1739068275663,-1911.6336886,0.00011008,2]
[352380427,1739068275673,-150.0,0.0001101,2]
[352380428,1739068275683,-500.0,0.00011025,2]
[352380429,1739068275692,-1678.0,0.00011025,2]
[352380430,1739068275701,-783.39051409,0.00011032,2]
[352380431,1739068275711,-150.0,0.00011038,2]
[352380432,1739068275720,-150.0,0.00011045,2]
[352380433,1739068275730,-500.0,0.00011053,2]
[352380434,1739068275739,-1678.0,0.00011053,2]
[352380435,1739068275748,-150.0,0.00011056,2]
[352380436,1739068275758,-500.9821146,0.00011073,2]
[352380437,1739068275767,-500.39473864,0.00011073,2]
[352380438,1739068275777,-500.0,0.0001108,2]
[352380439,1739068275787,-1678.0,0.0001108,2]
[352380440,1739068275798,-300.0,0.00011085,2]
[352380441,1739068275807,-300.0,0.00011085,2]
[352380442,1739068275817,-529.04230417,0.00011085,2]
[352380443,1739068275826,-500.0,0.00011085,2]
[352380444,1739068275835,-500.0,0.00011085,2]
[352380445,1739068275847,-500.0,0.00011085,2]
[352380446,1739068275860,-500.0,0.00011085,2]
[352380447,1739068275870,-500.0,0.00011085,2]
[352380448,1739068275879,-527.51542988,0.00011085,2]
[352380449,1739068275889,-500.0,0.00011085,2]
[352380450,1739068275899,-500.0,0.00011085,2]
[352380451,1739068275908,-500.0,0.00011085,2]
[352380452,1739068275917,-319.52166962,0.00011085,2]
[352380453,1739068275927,-473.31291312,0.00011085,2]
[352380454,1739068275937,-523.56852958,0.00011085,2]
[352380455,1739068275947,-500.0,0.00011085,2]
[352380456,1739068275956,-500.0,0.00011085,2]
[352380457,1739068275965,-500.0,0.00011085,2]
[352380458,1739068275974,-500.0,0.00011085,2]
[352380459,1739068275984,-500.0,0.00011085,2]
[352380460,1739068275994,-500.0,0.00011085,2]
[352380461,1739068276004,-500.0,0.00011085,2]
[352380462,1739068276014,-500.0,0.00011085,2]
[352380463,1739068276024,-623.25991698,0.00011085,2]
[352380464,1739068276034,-500.0,0.00011085,2]
[352380465,1739068276043,-500.0,0.00011085,2]
[352380466,1739068276052,-357.84045157,0.00011085,2]
[352380467,1739068276061,-500.0,0.00011085,2]
[352380468,1739068276070,-444.62122064,0.00011085,2]
[352380469,1739068276079,-500.0,0.00011085,2]
[352380470,1739068276088,-154.95,0.00011085,2]
[352380471,1739068276097,-500.0,0.00011085,2]
[352380472,1739068276106,-500.0,0.00011085,2]
[352380473,1739068276115,-500.0,0.00011085,2]
[352380474,1739068276124,-500.0,0.00011085,2]
[352380475,1739068276133,-500.0,0.00011085,2]
[352380476,1739068276143,-625.08730526,0.00011085,2]
[352380477,1739068276152,-500.0,0.00011085,2]
[352380478,1739068276161,-500.0,0.00011085,2]
[352380479,1739068276171,-500.0,0.00011085,2]
[352380480,1739068276180,-500.0,0.00011085,2]
[352380481,1739068276190,-500.0,0.00011085,2]
[352380482,1739068276199,-500.0,0.00011085,2]
[352380483,1739068276208,-500.0,0.00011085,2]
[352380484,1739068276217,-542.94264312,0.00011085,2]
[352380485,1739068276226,-500.0,0.00011085,2]
[352380486,1739068276236,-500.0,0.00011085,2]
[352380487,1739068276245,-500.0,0.00011085,2]
[352380488,1739068276254,-500.0,0.00011085,2]
[352380489,1739068276264,-500.0,0.00011085,2]
[352380490,1739068276273,-1039.13,0.00011085,2]
[352380491,1739068276283,-500.0,0.00011085,2]
[352380492,1739068276292,-1045.67,0.00011085,2]
[352380493,1739068276302,-500.0,0.00011085,2]
[352380494,1739068276312,-2505.02,0.00011085,2]
[352380495,1739068276321,-500.0,0.00011085,2]
[352380496,1739068276330,-316.44728809,0.00011085,2]
[352380497,1739068276339,-500.0,0.00011085,2]
[352380498,1739068276351,-785.35,0.00011085,2]
[352380499,1739068276360,-500.0,0.00011085,2]
[352380500,1739068276370,-1090.29,0.00011085,2]
[352380501,1739068276380,-500.0,0.00011085,2]
[352380502,1739068276389,-1345.79,0.00011085,2]
[352380503,1739068276399,-500.0,0.00011085,2]
[352380504,1739068276408,-1000.0,0.00011085,2]
[352380505,1739068276418,-969.66,0.00011085,2]
[352380506,1739068276428,-500.0,0.00011085,2]
[352380507,1739068276437,-500.0,0.00011085,2]
[352380508,1739068276447,-1750.99,0.00011085,2]
[352380509,1739068276456,-500.0,0.00011085,2]
[352380510,1739068276466,-500.0,0.00011085,2]
[352380511,1739068276476,-1987.42,0.00011085,2]
[352380512,1739068276486,-500.0,0.00011085,2]
[352380513,1739068276496,-500.0,0.00011085,2]
[352380514,1739068276506,-500.0,0.00011085,2]
[352380515,1739068276516,-500.0,0.00011085,2]
[352380516,1739068276526,-500.0,0.00011085,2]
[352380517,1739068276536,-500.0,0.00011085,2]
[352380518,1739068276546,-283.82235992,0.00011085,2]
[352380519,1739068276555,-500.0,0.00011085,2]
[352380520,1739068276565,-202.90320672,0.00011085,2]
[352380521,1739068276575,-515.18746133,0.00011085,2]
[352380522,1739068276585,-500.0,0.00011085,2]
[352380523,1739068276596,-500.0,0.00011085,2]
[352380524,1739068276606,-500.0,0.00011085,2]
[352380525,1739068276615,-500.0,0.00011085,2]
[352380526,1739068276624,-500.0,0.00011085,2]
[352380527,1739068276634,-500.0,0.00011085,2]
[352380528,1739068276644,-500.0,0.00011085,2]
[352380529,1739068276653,-500.0,0.00011086,2]
[352380530,1739068276663,-500.0,0.00011086,2]
[352380531,1739068276673,-400.29947517,0.00011086,2]
[352380532,1739068276682,-518.24294703,0.00011086,2]
[352380533,1739068276691,-500.0,0.00011086,2]
[352380534,1739068276701,-500.0,0.00011086,2]
[352380535,1739068276710,-500.0,0.00011086,2]
[352380536,1739068276720,-687.79,0.00011086,2]
[352380537,1739068276729,-500.0,0.00011086,2]
[352380538,1739068276739,-500.0,0.00011086,2]
[352380539,1739068276749,-500.0,0.00011086,2]
[352380540,1739068276758,-500.0,0.00011086,2]
[352380541,1739068276767,-500.0,0.00011086,2]
[352380542,1739068276778,-500.0,0.00011086,2]
[352380543,1739068276787,-940.52,0.00011086,2]
[352380544,1739068276796,-500.0,0.00011086,2]
[352380545,1739068276806,-500.0,0.00011086,2]
[352380546,1739068276815,-500.0,0.00011086,2]
[352380547,1739068276825,-572.54,0.00011086,2]
[352380548,1739068276834,-500.0,0.00011086,2]
[352380549,1739068276844,-713.14,0.00011086,2]
[352380550,1739068276856,-789.17,0.00011086,2]
[352380551,1739068276866,-166.65782627,0.00011086,2]
[352380552,1739068276876,-500.0,0.00011086,2]
[352380553,1739068276886,-399.3901182,0.00011086,2]
[352380554,1739068276896,-500.0,0.00011086,2]
[352380555,1739068276905,-500.0,0.00011086,2]
[352380556,1739068276915,-500.0,0.00011086,2]
[352380557,1739068276924,-604.29,0.00011086,2]
[352380558,1739068276935,-500.0,0.00011086,2]
[352380559,1739068276944,-500.0,0.00011086,2]
[352380560,1739068276954,-500.0,0.00011086,2]
[352380561,1739068276963,-796.85,0.00011086,2]
[352380562,1739068276972,-500.0,0.00011086,2]
[352380563,1739068276982,-704.0,0.00011086,2]
[352380564,1739068276992,-500.0,0.00011086,2]
[352380565,1739068277001,-500.0,0.00011086,2]
[352380566,1739068277162,-500.0,0.00011086,2]
[352380567,1739068277173,-855.137713,0.00011086,2]
[352380568,1739068277182,-878.2,0.00011086,2]
[352380569,1739068277192,-965.48681,0.00011086,2]
[352380570,1739068277202,-500.0,0.00011086,2]
[352380571,1739068277212,-500.0,0.00011086,2]
[352380572,1739068277222,-500.0,0.00011086,2]
[352380573,1739068277231,-500.0,0.00011086,2]
[352380574,1739068277240,-500.0,0.00011086,2]
[352380575,1739068277250,-500.0,0.00011086,2]
[352380576,1739068277259,-500.0,0.00011086,2]
[352380577,1739068277269,-521.76333632,0.00011086,2]
[352380578,1739068277280,-500.0,0.00011086,2]
[352380579,1739068277290,-500.0,0.00011086,2]
[352380580,1739068277300,-502.45,0.00011086,2]
[352380581,1739068277309,-500.0,0.00011086,2]
[352380582,1739068277321,-906.91,0.00011086,2]
[352380583,1739068277331,-500.0,0.00011086,2]
[352380584,1739068277340,-520.73,0.00011086,2]
[352380585,1739068277350,-500.0,0.00011086,2]
[352380586,1739068277359,-862.92,0.00011086,2]
[352380587,1739068277369,-850.75,0.00011086,2]
[352380588,1739068277378,-500.0,0.00011086,2]
[352380589,1739068277387,-500.0,0.00011086,2]
[352380590,1739068277396,-632.29,0.00011086,2]
[352380591,1739068277405,-867.75,0.00011086,2]
[352380592,1739068277415,-284.97279392,0.00011086,2]
[352380593,1739068277424,-494.90751352,0.00011086,2]
[352380594,1739068277434,-500.0,0.00011086,2]
[352380595,1739068277444,-500.0,0.00011086,2]
[352380596,1739068277454,-639.4754257,0.00011086,2]
[352380597,1739068277464,-657.74,0.00011086,2]
[352380598,1739068277474,-950.5,0.00011086,2]
[352380599,1739068277483,-500.0,0.00011086,2]
[352380600,1739068277493,-796.41,0.00011086,2]
[352380601,1739068277503,-500.0,0.00011086,2]
[352380602,1739068277512,-500.0,0.00011086,2]
[352380603,1739068277523,-500.0,0.00011086,2]
[352380604,1739068277532,-500.0,0.00011086,2]
[352380605,1739068277542,-457.89905871,0.00011086,2]
[352380606,1739068277552,-789.95,0.00011086,2]
[352380607,1739068277561,-500.0,0.00011086,2]
[352380608,1739068277571,-500.0,0.00011086,2]
[352380609,1739068277580,-500.0,0.00011086,2]
[352380610,1739068277589,-500.0,0.00011086,2]
[352380611,1739068277598,-770.81,0.00011086,2]
[352380612,1739068277608,-1084.12970275,0.00011086,2]
[352380613,1739068277937,-678.902,0.00011086,2]
[352380614,1739068277983,-643.28,0.00010136,2]
[352380615,1739068277992,-500.0,0.00010821,2]
[352380616,1739068278002,-211.32829725,0.00011086,2]
[352380617,1739068278012,-667.99170275,0.00011086,2]
[352380618,1739068278421,-500.0,9.999e-05,2]
[352380619,1739068278430,-47.83441356,0.00010127,2]
[352380620,1739068278442,-457.30558644,0.00010127,2]
[352380621,1739068278451,-500.0,0.00010136,2]
[352380622,1739068278461,-505.14,0.00010264,2]
[352380623,1739068278470,-22.748577,0.00010273,2]